[Event "Centenario Panaderia Pulido 2023"]
[Site "San Mateo Gran Canaria"]
[Date "2023.12.06"]
[Round "5.4"]
[White "Larino Nieto, David"]
[Black "Hernandez Leon, Sergio"]
[Result "1/2-1/2"]
[ECO "C68"]
[WhiteElo "2366"]
[BlackElo "2167"]
[Annotator "RC"]
[PlyCount "133"]
[EventDate "2023.12.04"]
[EventType "swiss"]
[EventCountry "ESP"]
[SourceTitle "playchess.com"]
[Source "ChessBase"]
[SourceQuality "1"]
[TimeControl "5400+30"]

1. e4 {[%emt 0:00:02]} e5 {[%emt 0:00:13]} 2. Nf3 {[%emt 0:00:02]} Nc6 {[%emt 0:00:06]} 3. Bb5 {[%emt 0:00:01]} a6 {[%emt 0:01:23]} 4. Bxc6 {[%emt 0:00:02]} dxc6 {[%emt 0:00:16]} 5. O-O {[%emt 0:00:05]} Bg4 {[%emt 0:02:42]} 6. h3 {[%emt 0:00:09]} Bxf3 {[%emt 0:00:36]} 7. Qxf3 {[%emt 0:00:07]} Qf6 {[%emt 0:02:48]} 8. Qg3 {[%emt 0:00:43]} O-O-O {[%emt 0:02:31]} 9. d3 {[%emt 0:00:11]} h6 {[%emt 0:02:49]} 10. f4 {[%emt 0:00:02]} exf4 {[%emt 0:05:28]} 11. Qxf4 {[%emt 0:00:19]} Qxf4 {[%emt 0:02:10]} 12. Bxf4 {[%emt 0:00:11]} f6 {[%emt 0:03:17]} 13. Nd2 {[%emt 0:00:07]} Bd6 {[%emt 0:04:45]} 14. Nc4 {[%emt 0:00:58]} Ne7 {[%emt 0:13:18]} 15. Be3 {[%emt 0:14:39]} Ng6 {[%emt 0:01:43]} 16. a4 {[%emt 0:01:08]} Ne5 {[%emt 0:03:23]} 17. Nxd6+ {[%emt 0:00:25]} cxd6 {[%emt 0:00:29]} 18. b4 {[%emt 0:00:30]} Kc7 {[%emt 0:09:54]} 19. Kf2 {[%emt 0:01:05]} Rhe8 {[%emt 0:00:42]} 20. Rfb1 {[%emt 0:02:30]} Ra8 {[%emt 0:05:00]} 21. Ra3 {[%emt 0:01:22]} Rf8 {[%emt 0:05:57]} 22. g4 {[%emt 0:09:30]} h5 {[%emt 0:03:04]} 23. gxh5 {[%emt 0:03:09]} Rh8 {[%emt 0:00:31]} 24. Rg1 {[%emt 0:02:18]} Rag8 {[%emt 0:00:18]} 25. d4 {[%emt 0:04:47]} Nc4 {[%emt 0:01:38]} 26. Rc3 {[%emt 0:00:02]} Nxe3 {[%emt 0:01:49]} 27. Rxe3 {[%emt 0:00:01]} Rxh5 {[%emt 0:00:14]} 28. Rg6 {[%emt 0:00:02]} Kd7 {[%emt 0:01:36]} 29. Reg3 {[%emt 1:00:33]} Rh7 {[%emt 0:00:48]} 30. a5 {[%emt 0:00:00]} Ke6 {[%emt 0:07:20]} 31. Ke3 {[%emt 0:00:00]} Kf7 {[%emt 0:04:52]} 32. Kd3 {[%emt 0:00:00]} Rxh3 {[%emt 0:10:26]} 33. Rxg7+ {[%emt 0:00:00]} Rxg7 {[%emt 0:00:05]} 34. Rxh3 {[%emt 0:00:00]} Ke6 {[%emt 0:00:11]} 35. Kc4 {[%emt 0:00:00]} Rc7 {[%emt 0:00:27]} 36. Rh4 {[%emt 0:00:00]} Rg7 {[%emt 0:01:54]} 37. c3 {[%emt 0:00:00]} Rc7 {[%emt 0:00:31]} 38. Rg4 {[%emt 0:00:00]} Rh7 {[%emt 0:01:54]} 39. Rg8 {[%emt 0:00:00]} Rc7 {[%emt 0:00:07]} 40. Re8+ {[%emt 0:00:00]} Kd7 {[%emt 0:00:11]} 41. Rh8 {[%emt 0:00:00]} Ke6 {[%emt 0:00:06]} 42. Kd3 {[%emt 0:00:00]} Rg7 {[%emt 0:00:30]} 43. Rh3 {[%emt 0:00:00]} Rc7 {[%emt 0:03:17]} 44. Ke3 {[%emt 0:00:00]} Rg7 {[%emt 0:00:21]} 45. c4 {[%emt 0:00:00]} d5 {[%emt 0:00:42]} 46. exd5+ {[%emt 0:00:00]} cxd5 {[%emt 0:00:04]} 47. c5 {[%emt 0:00:00]} Kf5 {[%emt 0:00:12]} 48. Rh5+ {[%emt 0:00:00]} Ke6 {[%emt 0:00:47]} 49. Kf4 {[%emt 0:00:00]} Rc7 {[%emt 0:01:02]} 50. Rh8 {[%emt 0:00:00]} Rd7 {[%emt 0:00:10]} 51. Kg4 {[%emt 0:00:00]} Rg7+ {[%emt 0:00:22]} 52. Kf3 {[%emt 0:00:00]} Kd7 {[%emt 0:00:53]} 53. Rf8 {[%emt 0:00:00]} Kc6 {[%emt 0:00:29]} 54. Rd8 {[%emt 0:00:00]} Kb5 {[%emt 0:00:35]} 55. Rxd5 {[%emt 0:00:00]} Kxb4 {[%emt 0:00:15]} 56. Rd6 {[%emt 0:00:00]} Kc4 {[%emt 0:00:23]} 57. Kf4 {[%emt 0:00:00]} Rg5 {[%emt 0:00:43]} 58. Kf3 {[%emt 0:00:00]} Rf5+ {[%emt 0:00:27]} 59. Ke4 {[%emt 0:00:00]} Rh5 {[%emt 0:00:17]} 60. c6 {[%emt 0:00:00]} Rh4+ {[%emt 0:00:33]} 61. Ke3 {[%emt 0:00:00]} Rh3+ {[%emt 0:00:12]} 62. Kf4 {[%emt 0:00:00]} bxc6 {[%emt 0:00:29]} 63. Rxc6+ {[%emt 0:00:00]} Kxd4 {[%emt 0:00:06]} 64. Rxa6 {[%emt 0:00:00]} Ra3 {[%emt 0:00:09]} 65. Ra8 {[%emt 0:00:00]} Kc5 {[%emt 0:00:07]} 66. a6 {[%emt 0:00:00]} Kb6 {[%emt 0:00:06]} 67. Ke4 {[%emt 0:19:00]} 1/2-1/2

[Event "Centenario Panaderia Pulido 2023"]
[Site "San Mateo Gran Canaria"]
[Date "2023.12.06"]
[Round "5.5"]
[White "Yao, Stefano"]
[Black "Hernandez Leon, Alberto"]
[Result "1/2-1/2"]
[ECO "E04"]
[WhiteElo "2288"]
[BlackElo "2209"]
[Annotator "RC"]
[PlyCount "92"]
[EventDate "2023.12.04"]
[EventType "swiss"]
[EventCountry "ESP"]
[SourceTitle "playchess.com"]
[Source "ChessBase"]
[SourceQuality "1"]
[TimeControl "5400+30"]

1. Nf3 {[%emt 0:00:12]} Nf6 {[%emt 0:00:32]} 2. c4 {[%emt 0:01:16]} e6 {[%emt 0:00:14]} 3. d4 {[%emt 0:02:27]} d5 {[%emt 0:00:23]} 4. Nc3 {[%emt 0:00:40]} c6 {[%emt 0:03:29]} 5. g3 {[%emt 0:03:00]} dxc4 {[%emt 0:01:56]} 6. Bg2 {[%emt 0:00:09]} b5 {[%emt 0:01:20]} 7. Ne5 {[%emt 0:00:54]} Qb6 {[%emt 0:06:26]} 8. O-O {[%emt 0:01:11]} Bb7 {[%emt 0:01:21]} 9. a4 {[%emt 0:05:33]} a6 {[%emt 0:03:26]} 10. e4 {[%emt 0:10:23]} Bb4 {[%emt 0:07:25]} 11. Be3 {[%emt 0:15:05]} Qd8 {[%emt 0:04:20]} 12. Qe2 {[%emt 0:05:58]} O-O {[%emt 0:02:34]} 13. Rad1 {[%emt 0:03:38]} Qa5 {[%emt 1:03:34]} 14. Qc2 {[%emt 0:05:10]} Rd8 {[%emt 0:00:00]} 15. Bg5 {[%emt 0:05:59]} Nbd7 {[%emt 0:00:00]} 16. Nxd7 {[%emt 0:06:48]} Rxd7 {[%emt 0:00:00]} 17. Bxf6 {[%emt 0:00:18]} gxf6 {[%emt 0:00:00]} 18. e5 {[%emt 0:02:17]} Bxc3 {[%emt 0:00:00]} 19. bxc3 {[%emt 0:00:07]} fxe5 {[%emt 0:00:00]} 20. Qc1 {[%emt 0:07:47]} exd4 {[%emt 0:00:00]} 21. Qg5+ {[%emt 0:00:08]} Kh8 {[%emt 0:00:00]} 22. Qe5+ {[%emt 0:03:10]} Kg8 {[%emt 0:00:00]} 23. cxd4 {[%emt 0:01:19]} Qc7 {[%emt 0:00:00]} 24. Qg5+ {[%emt 0:00:40]} Kh8 {[%emt 0:00:00]} 25. Qf6+ {[%emt 0:00:42]} Kg8 {[%emt 0:00:09]} 26. Rfe1 {[%emt 0:00:22]} Qd8 {[%emt 0:01:24]} 27. Qe5 {[%emt 0:00:13]} Rd5 {[%emt 0:00:38]} 28. Qf4 {[%emt 0:10:48]} Rg5 {[%emt 0:04:41]} 29. h4 {[%emt 0:00:29]} Rg7 {[%emt 0:00:09]} 30. Re5 {[%emt 0:00:20]} Qb8 {[%emt 0:00:35]} 31. h5 {[%emt 0:00:37]} c3 {[%emt 0:00:46]} 32. h6 {[%emt 0:00:29]} Rg6 {[%emt 0:00:01]} 33. Be4 {[%emt 0:00:15]} f5 {[%emt 0:00:08]} 34. Bc2 {[%emt 0:01:07]} Kh8 {[%emt 0:01:22]} 35. Bb3 {[%emt 0:02:07]} Qd6 {[%emt 0:00:32]} 36. Qe3 {[%emt 0:01:37]} c5 {[%emt 0:00:18]} 37. Qxc3 {[%emt 0:01:56]} cxd4 {[%emt 0:00:42]} 38. Rxd4 {[%emt 0:00:52]} Qc6 {[%emt 0:00:13]} 39. Qxc6 {[%emt 0:01:08]} Bxc6 {[%emt 0:00:01]} 40. Rxe6 {[%emt 0:01:50]} bxa4 {[%emt 0:00:35]} 41. Rxg6 {[%emt 0:01:12]} hxg6 {[%emt 0:00:02]} 42. Bxa4 {[%emt 0:01:17]} Bxa4 {[%emt 0:00:31]} 43. Rxa4 {[%emt 0:00:00]} Kh7 {[%emt 0:00:08]} 44. Ra5 {[%emt 0:00:00]} Kxh6 {[%emt 0:00:08]} 45. Kg2 {[%emt 0:00:00]} Kg5 {[%emt 0:00:37]} 46. Kf3 {[%emt 0:00:00]} Kf6 {[%emt 0:02:50]} 1/2-1/2

[Event "Centenario Panaderia Pulido 2023"]
[Site "San Mateo Gran Canaria"]
[Date "2023.12.06"]
[Round "5.6"]
[White "Calzetta Ruiz, Monica"]
[Black "Marrero Cardenes, Agustin"]
[Result "1/2-1/2"]
[ECO "D42"]
[WhiteElo "2239"]
[BlackElo "2106"]
[Annotator "RC"]
[PlyCount "67"]
[EventDate "2023.12.04"]
[EventType "swiss"]
[EventCountry "ESP"]
[SourceTitle "playchess.com"]
[Source "ChessBase"]
[SourceQuality "1"]
[TimeControl "5400+30"]

1. e4 {[%emt 0:00:04]} c6 {[%emt 0:00:06]} 2. d4 {[%emt 0:00:08]} d5 {[%emt 0:00:06]} 3. exd5 {[%emt 0:00:05]} cxd5 {[%emt 0:00:08]} 4. c4 {[%emt 0:00:05]} Nf6 {[%emt 0:00:35]} 5. Nc3 {[%emt 0:00:08]} e6 {[%emt 0:00:29]} 6. Nf3 {[%emt 0:00:15]} Be7 {[%emt 0:00:49]} 7. cxd5 {[%emt 0:00:27]} Nxd5 {[%emt 0:00:22]} 8. Bd3 {[%emt 0:00:14]} Nc6 {[%emt 0:00:37]} 9. O-O {[%emt 0:00:17]} O-O {[%emt 0:00:39]} 10. a3 {[%emt 0:01:16]} Bf6 {[%emt 0:02:36]} 11. Bc2 {[%emt 0:00:27]} Nxc3 {[%emt 0:03:02]} 12. bxc3 {[%emt 0:00:08]} b6 {[%emt 0:00:46]} 13. Qd3 {[%emt 0:02:36]} g6 {[%emt 0:00:37]} 14. Bh6 {[%emt 0:00:55]} Bg7 {[%emt 0:01:10]} 15. Bxg7 {[%emt 0:09:24]} Kxg7 {[%emt 0:00:05]} 16. Rac1 {[%emt 0:04:31]} Bb7 {[%emt 0:00:50]} 17. Rfd1 {[%emt 0:01:15]} Rc8 {[%emt 0:00:21]} 18. h4 {[%emt 0:35:55]} Na5 {[%emt 0:06:53]} 19. Ng5 {[%emt 0:08:38]} Qd5 {[%emt 0:02:19]} 20. Qg3 {[%emt 0:00:30]} Nc4 {[%emt 0:25:52]} 21. h5 {[%emt 0:05:39]} Nd6 {[%emt 0:03:21]} 22. c4 {[%emt 0:12:34]} Nxc4 {[%emt 0:22:36]} 23. hxg6 {[%emt 0:00:38]} hxg6 {[%emt 0:07:35]} 24. Be4 {[%emt 0:01:09]} Qd7 {[%emt 0:00:05]} 25. Nxe6+ {[%emt 0:01:44]} Qxe6 {[%emt 0:01:43]} 26. Bxb7 {[%emt 0:00:02]} Rb8 {[%emt 0:03:42]} 27. d5 {[%emt 0:03:44]} Qf6 {[%emt 0:02:33]} 28. Ba6 {[%emt 0:01:25]} Nd6 {[%emt 0:01:08]} 29. Rc7 {[%emt 0:01:43]} Rh8 {[%emt 0:03:44]} 30. Qc3 {[%emt 0:06:23]} Qxc3 {[%emt 0:02:37]} 31. Rxc3 {[%emt 0:00:02]} Rh4 {[%emt 0:00:56]} 32. g3 {[%emt 0:02:07]} Ra4 {[%emt 0:00:36]} 33. Bf1 {[%emt 0:01:14]} Rd8 {[%emt 0:00:12]} 34. Re1 {[%emt 0:01:48]} 1/2-1/2

[Event "Centenario Panaderia Pulido 2023"]
[Site "San Mateo Gran Canaria"]
[Date "2023.12.06"]
[Round "5.7"]
[White "Oudeh Mishmesh, Omar"]
[Black "Gonzalez Martinez, Miguel Angel"]
[Result "1/2-1/2"]
[ECO "A22"]
[WhiteElo "2247"]
[BlackElo "2158"]
[Annotator "RC"]
[PlyCount "119"]
[EventDate "2023.12.04"]
[EventType "swiss"]
[EventCountry "ESP"]
[SourceTitle "playchess.com"]
[Source "ChessBase"]
[SourceQuality "1"]
[TimeControl "5400+30"]

1. c4 d6 {[%emt 0:00:50]} 2. Nc3 {[%emt 0:00:13]} e5 {[%emt 0:00:09]} 3. g3 {[%emt 0:00:04]} Nf6 {[%emt 0:00:15]} 4. Bg2 {[%emt 0:00:11]} Be7 {[%emt 0:00:29]} 5. Nf3 {[%emt 0:00:17]} O-O {[%emt 0:00:16]} 6. O-O {[%emt 0:00:26]} a5 {[%emt 0:03:05]} 7. d4 {[%emt 0:02:38]} exd4 {[%emt 0:03:53]} 8. Nxd4 {[%emt 0:00:12]} Na6 {[%emt 0:00:18]} 9. b3 {[%emt 0:02:06]} c6 {[%emt 0:02:55]} 10. Bb2 {[%emt 0:07:12]} Re8 {[%emt 0:03:38]} 11. Qd2 {[%emt 0:02:40]} Nc5 {[%emt 0:04:04]} 12. Rfd1 {[%emt 0:10:46]} Bf8 {[%emt 0:00:58]} 13. Qc2 {[%emt 0:00:56]} Qe7 {[%emt 0:06:30]} 14. Bc1 {[%emt 0:13:36]} Ng4 {[%emt 0:03:28]} 15. Bf4 {[%emt 0:06:18]} g5 {[%emt 0:04:16]} 16. Bd2 {[%emt 0:07:33]} Qf6 {[%emt 0:00:38]} 17. Be1 {[%emt 0:01:41]} Qh6 {[%emt 0:06:13]} 18. Nf3 {[%emt 0:02:21]} Qf6 {[%emt 0:04:44]} 19. Qd2 {[%emt 0:04:51]} h6 {[%emt 0:01:28]} 20. Nd4 {[%emt 0:00:44]} Bd7 {[%emt 0:05:14]} 21. a3 {[%emt 0:02:08]} Bg7 {[%emt 0:02:42]} 22. e3 {[%emt 0:01:46]} Ne5 {[%emt 0:01:00]} 23. Qc2 {[%emt 0:05:45]} Bg4 {[%emt 0:01:49]} 24. Nce2 {[%emt 0:02:08]} Nf3+ {[%emt 0:04:41]} 25. Nxf3 {[%emt 0:00:30]} Bxf3 {[%emt 0:00:03]} 26. Bc3 {[%emt 0:00:21]} Re5 {[%emt 0:02:16]} 27. Bxf3 {[%emt 0:10:08]} Qxf3 {[%emt 0:00:26]} 28. Nd4 {[%emt 0:01:20]} Qg4 {[%emt 0:03:45]} 29. b4 {[%emt 0:02:21]} Nd7 {[%emt 0:01:38]} 30. Qe2 {[%emt 0:05:20]} Qh3 {[%emt 0:03:39]} 31. Qf3 {[%emt 0:04:22]} Rae8 {[%emt 0:01:37]} 32. Ne2 {[%emt 0:03:13]} h5 {[%emt 0:09:47]} 33. Rxd6 {[%emt 0:01:24]} h4 {[%emt 0:04:12]} 34. Rad1 {[%emt 0:00:23]} Rf5 {[%emt 0:00:58]} 35. Qg2 {[%emt 0:00:21]} Qg4 {[%emt 0:00:35]} 36. Bxg7 {[%emt 0:00:36]} Kxg7 {[%emt 0:04:45]} 37. gxh4 {[%emt 0:00:48]} Qxe2 {[%emt 0:00:42]} 38. Rxd7 {[%emt 0:00:12]} Rh8 {[%emt 0:01:32]} 39. R7d2 {[%emt 0:01:05]} Qxc4 {[%emt 0:00:10]} 40. Rd4 {[%emt 0:00:09]} Qe2 {[%emt 0:00:34]} 41. hxg5 {[%emt 0:01:15]} Rh5 {[%emt 0:00:32]} 42. h4 {[%emt 0:00:05]} Rxh4 {[%emt 0:00:33]} 43. Rxh4 {[%emt 0:00:30]} Qxd1+ {[%emt 0:00:09]} 44. Kh2 {[%emt 0:00:08]} Qe1 {[%emt 0:00:55]} 45. Kg3 {[%emt 0:01:07]} Rxg5+ {[%emt 0:00:14]} 46. Rg4 {[%emt 0:00:02]} Rxg4+ {[%emt 0:00:41]} 47. Kxg4 {[%emt 0:00:04]} axb4 {[%emt 0:00:15]} 48. axb4 {[%emt 0:00:50]} Qxb4+ {[%emt 0:00:02]} 49. f4 {[%emt 0:00:09]} Qc5 {[%emt 0:02:05]} 50. Qb2+ {[%emt 0:00:06]} Kg6 {[%emt 0:01:27]} 51. Qxb7 {[%emt 0:00:14]} f5+ {[%emt 0:00:10]} 52. Kf3 {[%emt 0:00:34]} Qd5+ {[%emt 0:00:01]} 53. Kg3 {[%emt 0:00:33]} Qe4 {[%emt 0:00:47]} 54. Qb3 {[%emt 0:00:29]} Kg7 {[%emt 0:00:44]} 55. Qc3+ {[%emt 0:00:32]} Kg6 {[%emt 0:00:14]} 56. Qc5 {[%emt 0:00:54]} Kh5 {[%emt 0:01:28]} 57. Qa7 {[%emt 0:00:28]} Kg6 {[%emt 0:00:33]} 58. Qc5 {[%emt 0:00:33]} Kh5 {[%emt 0:01:32]} 59. Qc3 {[%emt 0:00:14]} Kg6 {[%emt 0:00:17]} 60. Qc5 {[%emt 0:01:37]} 1/2-1/2

[Event "Centenario Panaderia Pulido 2023"]
[Site "San Mateo Gran Canaria"]
[Date "2023.12.06"]
[Round "5.8"]
[White "Mamani Beltran, Deniman"]
[Black "Estremera Panos, Sergio"]
[Result "1/2-1/2"]
[ECO "A13"]
[WhiteElo "2151"]
[BlackElo "2232"]
[Annotator "RC"]
[PlyCount "30"]
[EventDate "2023.12.04"]
[EventType "swiss"]
[EventCountry "ESP"]
[SourceTitle "playchess.com"]
[Source "ChessBase"]
[SourceQuality "1"]
[TimeControl "5400+30"]

1. Nf3 {[%emt 0:00:09]} Nf6 {[%emt 0:00:22]} 2. c4 {[%emt 0:00:27]} e6 {[%emt 0:00:21]} 3. g3 {[%emt 0:00:17]} d5 {[%emt 0:03:53]} 4. b3 {[%emt 0:01:33]} a5 {[%emt 0:02:09]} 5. Bg2 {[%emt 0:06:37]} a4 {[%emt 0:00:45]} 6. Bb2 {[%emt 0:00:20]} a3 {[%emt 0:03:03]} 7. Bc3 {[%emt 0:03:20]} Nc6 {[%emt 0:09:43]} 8. d4 {[%emt 0:06:29]} Ne4 {[%emt 0:01:22]} 9. O-O {[%emt 0:00:19]} Be7 {[%emt 0:27:24]} 10. e3 {[%emt 0:07:09]} Nxc3 {[%emt 0:10:23]} 11. Nxc3 {[%emt 0:00:06]} Nb4 {[%emt 0:00:14]} 12. Ne5 {[%emt 0:10:20]} c6 {[%emt 0:00:23]} 13. Rc1 {[%emt 0:10:24]} O-O {[%emt 0:00:24]} 14. Re1 {[%emt 0:00:14]} Qa5 {[%emt 0:04:00]} 15. c5 {[%emt 0:10:23]} Qc7 {[%emt 0:13:14]} 1/2-1/2

[Event "Centenario Panaderia Pulido 2023"]
[Site "San Mateo Gran Canaria"]
[Date "2023.12.06"]
[Round "5.9"]
[White "Rivero Reyes, Alejandro"]
[Black "Hernando Rodrigo, Jose Maria"]
[Result "0-1"]
[ECO "B01"]
[WhiteElo "1689"]
[BlackElo "2278"]
[Annotator "RC"]
[PlyCount "50"]
[EventDate "2023.12.04"]
[EventType "swiss"]
[EventCountry "ESP"]
[SourceTitle "playchess.com"]
[Source "ChessBase"]
[SourceQuality "1"]
[TimeControl "5400+30"]

1. e4 {[%emt 0:00:13]} d5 {[%emt 0:01:09]} 2. exd5 {[%emt 0:00:07]} Qxd5 {[%emt 0:00:05]} 3. Nc3 {[%emt 0:00:19]} Qa5 {[%emt 0:00:09]} 4. Nf3 {[%emt 0:00:27]} Nf6 {[%emt 0:00:14]} 5. g3 {[%emt 0:01:05]} Bg4 {[%emt 0:00:57]} 6. Bg2 {[%emt 0:00:20]} e6 {[%emt 0:00:46]} 7. O-O {[%emt 0:01:01]} Qh5 {[%emt 0:01:28]} 8. Qe2 {[%emt 0:03:01]} Nc6 {[%emt 0:06:46]} 9. Qe3 {[%emt 0:03:48]} Be7 {[%emt 0:08:41]} 10. Ng5 {[%emt 0:11:46]} Bf5 {[%emt 0:17:14]} 11. f3 {[%emt 0:07:51]} Bxc2 {[%emt 0:02:52]} 12. d4 {[%emt 0:05:12]} Rd8 {[%emt 0:04:52]} 13. Qf2 {[%emt 0:02:10]} Nxd4 {[%emt 0:04:51]} 14. Be3 {[%emt 0:06:31]} Bd3 {[%emt 0:00:42]} 15. Rfd1 {[%emt 0:05:24]} Nc2 {[%emt 0:00:40]} 16. Rac1 {[%emt 0:00:47]} Nxe3 {[%emt 0:00:15]} 17. Qxe3 {[%emt 0:00:14]} Ng4 {[%emt 0:00:10]} 18. fxg4 {[%emt 0:01:08]} Qxg5 {[%emt 0:01:40]} 19. Qf3 {[%emt 0:03:29]} Bc5+ {[%emt 0:03:37]} 20. Kh1 {[%emt 0:00:12]} Be3 {[%emt 0:00:37]} 21. h4 {[%emt 0:01:30]} h5 {[%emt 0:00:32]} 22. Qxb7 {[%emt 0:03:25]} hxg4 {[%emt 0:05:35]} 23. Bc6+ {[%emt 0:05:26]} Kf8 {[%emt 0:00:19]} 24. Kg2 {[%emt 0:03:42]} Rxh4 {[%emt 0:00:31]} 25. Rh1 {[%emt 0:00:02]} Rh3 {[%emt 0:38:18]} 0-1

[Event "Centenario Panaderia Pulido 2023"]
[Site "San Mateo Gran Canaria"]
[Date "2023.12.06"]
[Round "5.10"]
[White "Garbezza, Davide"]
[Black "Moreno Diepa, Diego"]
[Result "1/2-1/2"]
[ECO "A08"]
[WhiteElo "1860"]
[BlackElo "2138"]
[Annotator "RC"]
[PlyCount "141"]
[EventDate "2023.12.04"]
[EventType "swiss"]
[EventCountry "ESP"]
[SourceTitle "playchess.com"]
[Source "ChessBase"]
[SourceQuality "1"]
[TimeControl "5400+30"]

1. Nf3 {[%emt 0:00:05]} Nf6 {[%emt 0:00:04]} 2. b3 {[%emt 0:00:04]} d5 {[%emt 0:00:03]} 3. Bb2 {[%emt 0:00:05]} Bf5 {[%emt 0:00:04]} 4. d3 {[%emt 0:00:15]} c5 {[%emt 0:00:06]} 5. g3 {[%emt 0:01:16]} Nc6 {[%emt 0:00:54]} 6. Bg2 {[%emt 0:03:44]} e6 {[%emt 0:00:34]} 7. Nbd2 {[%emt 0:01:40]} h6 {[%emt 0:01:24]} 8. O-O {[%emt 0:00:11]} Be7 {[%emt 0:00:14]} 9. Re1 {[%emt 0:00:38]} O-O {[%emt 0:00:39]} 10. e4 {[%emt 0:00:45]} Bh7 {[%emt 0:04:20]} 11. exd5 {[%emt 0:15:41]} Nxd5 {[%emt 0:05:54]} 12. Ne5 {[%emt 0:08:04]} Nxe5 {[%emt 0:05:12]} 13. Bxe5 {[%emt 0:00:12]} Bf6 {[%emt 0:03:37]} 14. c4 {[%emt 0:22:22]} Nb4 {[%emt 0:05:36]} 15. Bxb7 {[%emt 0:13:28]} Nxd3 {[%emt 0:07:41]} 16. Bxa8 {[%emt 0:04:05]} Bxe5 {[%emt 0:04:21]} 17. Rxe5 {[%emt 0:02:35]} Nxe5 {[%emt 0:00:29]} 18. Be4 {[%emt 0:04:09]} Bxe4 {[%emt 0:04:43]} 19. Nxe4 {[%emt 0:00:02]} Qa8 {[%emt 0:00:06]} 20. Qe2 {[%emt 0:02:22]} Rd8 {[%emt 0:00:32]} 21. f4 {[%emt 0:04:38]} Rd4 {[%emt 0:04:51]} 22. fxe5 {[%emt 0:00:47]} Qxe4 {[%emt 0:00:05]} 23. Qxe4 {[%emt 0:02:52]} Rxe4 {[%emt 0:00:05]} 24. Kf2 {[%emt 0:00:32]} Rd4 {[%emt 0:03:17]} 25. Ke3 {[%emt 0:05:00]} Kh7 {[%emt 0:00:46]} 26. Rc1 {[%emt 0:01:24]} a5 {[%emt 0:02:48]} 27. a3 {[%emt 0:01:19]} Rd8 {[%emt 0:01:59]} 28. b4 {[%emt 0:02:32]} axb4 {[%emt 0:00:57]} 29. axb4 {[%emt 0:00:01]} cxb4 {[%emt 0:00:06]} 30. Rb1 {[%emt 0:00:58]} Kg6 {[%emt 0:01:35]} 31. Rxb4 {[%emt 0:00:14]} Kf5 {[%emt 0:00:29]} 32. Rb7 {[%emt 0:02:17]} Kxe5 {[%emt 0:05:28]} 33. Rxf7 {[%emt 0:00:07]} g5 {[%emt 0:00:24]} 34. h4 {[%emt 0:01:41]} gxh4 {[%emt 0:00:57]} 35. gxh4 {[%emt 0:00:01]} Rd4 {[%emt 0:00:24]} 36. c5 {[%emt 0:01:26]} Rxh4 {[%emt 0:03:10]} 37. c6 {[%emt 0:00:02]} Rc4 {[%emt 0:00:43]} 38. c7 {[%emt 0:00:29]} Kd6 {[%emt 0:00:33]} 39. Rh7 {[%emt 0:00:09]} Rxc7 {[%emt 0:00:05]} 40. Rxh6 {[%emt 0:00:01]} Kd5 {[%emt 0:00:10]} 41. Rh8 {[%emt 0:01:03]} Rc3+ {[%emt 0:00:20]} 42. Kd2 {[%emt 0:00:39]} Ra3 {[%emt 0:00:16]} 43. Rh5+ {[%emt 0:01:05]} e5 {[%emt 0:00:33]} 44. Rh8 {[%emt 0:00:22]} Kd4 {[%emt 0:01:31]} 45. Rd8+ {[%emt 0:00:47]} Ke4 {[%emt 0:00:05]} 46. Re8 {[%emt 0:00:28]} Rh3 {[%emt 0:01:40]} 47. Ra8 {[%emt 0:00:25]} Rh2+ {[%emt 0:00:12]} 48. Ke1 {[%emt 0:00:21]} Ke3 {[%emt 0:01:07]} 49. Ra3+ {[%emt 0:00:05]} Kf4 {[%emt 0:00:06]} 50. Kf1 {[%emt 0:00:45]} e4 {[%emt 0:00:19]} 51. Ke1 {[%emt 0:00:22]} Rh1+ {[%emt 0:01:34]} 52. Ke2 {[%emt 0:00:15]} Rb1 {[%emt 0:00:23]} 53. Kf2 {[%emt 0:00:36]} Rd1 {[%emt 0:00:53]} 54. Ke2 {[%emt 0:00:16]} Rh1 {[%emt 0:00:42]} 55. Kf2 {[%emt 0:01:00]} Rh7 {[%emt 0:00:37]} 56. Ke2 {[%emt 0:00:10]} Rd7 {[%emt 0:00:27]} 57. Kf2 {[%emt 0:00:13]} Rd3 {[%emt 0:00:26]} 58. Ra8 {[%emt 0:01:29]} Rd2+ {[%emt 0:01:46]} 59. Ke1 {[%emt 0:00:33]} Ke3 {[%emt 0:00:37]} 60. Rh8 {[%emt 0:00:49]} Ra2 {[%emt 0:01:06]} 61. Rh3+ {[%emt 0:00:06]} Kd4 {[%emt 0:00:05]} 62. Kd1 {[%emt 0:00:26]} Rf2 {[%emt 0:01:56]} 63. Ra3 {[%emt 0:00:21]} Rf3 {[%emt 0:00:48]} 64. Ra8 {[%emt 0:00:49]} Ke3 {[%emt 0:00:40]} 65. Ke1 {[%emt 0:00:10]} Rf7 {[%emt 0:00:10]} 66. Ra3+ {[%emt 0:00:05]} Kf4 {[%emt 0:00:11]} 67. Ke2 {[%emt 0:00:12]} Rh7 {[%emt 0:00:23]} 68. Kf2 {[%emt 0:00:08]} e3+ {[%emt 0:00:51]} 69. Rxe3 {[%emt 0:00:08]} Rh2+ {[%emt 0:00:03]} 70. Kg1 {[%emt 0:00:01]} Kxe3 {[%emt 0:00:05]} 71. Kxh2 {[%emt 0:00:33]} 1/2-1/2

[Event "Centenario Panaderia Pulido 2023"]
[Site "San Mateo Gran Canaria"]
[Date "2023.12.06"]
[Round "5.11"]
[White "Camino Carrio, Nicanor"]
[Black "Basualdo De Ornelas, Jorge"]
[Result "1/2-1/2"]
[ECO "B13"]
[WhiteElo "1948"]
[BlackElo "1624"]
[Annotator "RC"]
[PlyCount "66"]
[EventDate "2023.12.04"]
[EventType "swiss"]
[EventCountry "ESP"]
[SourceTitle "playchess.com"]
[Source "ChessBase"]
[SourceQuality "1"]
[TimeControl "5400+30"]

1. d4 {[%emt 0:00:06]} d5 {[%emt 0:00:06]} 2. Bf4 {[%emt 0:00:14]} c5 {[%emt 0:00:16]} 3. e3 {[%emt 0:00:19]} Nc6 {[%emt 0:00:08]} 4. Nf3 {[%emt 0:00:31]} cxd4 {[%emt 0:00:11]} 5. exd4 {[%emt 0:00:09]} Bg4 {[%emt 0:00:14]} 6. Nc3 {[%emt 0:01:11]} a6 {[%emt 0:04:27]} 7. Be2 {[%emt 0:00:31]} Nf6 {[%emt 0:02:03]} 8. O-O {[%emt 0:00:43]} e6 {[%emt 0:00:11]} 9. h3 {[%emt 0:02:19]} Bf5 {[%emt 0:06:28]} 10. Bd3 {[%emt 0:03:17]} Bxd3 {[%emt 0:05:48]} 11. Qxd3 {[%emt 0:00:07]} Be7 {[%emt 0:00:22]} 12. Ne5 {[%emt 0:01:02]} Nxe5 {[%emt 0:00:55]} 13. Bxe5 {[%emt 0:01:36]} Bd6 {[%emt 0:00:58]} 14. Qg3 {[%emt 0:01:35]} Bxe5 {[%emt 0:07:38]} 15. dxe5 {[%emt 0:00:28]} Nh5 {[%emt 0:00:07]} 16. Qg4 {[%emt 0:02:45]} g6 {[%emt 0:00:15]} 17. Rad1 {[%emt 0:00:52]} Qe7 {[%emt 0:03:31]} 18. Qa4+ {[%emt 0:00:51]} Qd7 {[%emt 0:04:02]} 19. Qd4 {[%emt 0:05:33]} Rd8 {[%emt 0:03:06]} 20. Qe3 {[%emt 0:01:49]} d4 {[%emt 0:27:10]} 21. Qe4 {[%emt 0:04:47]} Ng7 {[%emt 0:17:01]} 22. Ne2 {[%emt 0:02:02]} Nf5 {[%emt 0:01:32]} 23. g4 {[%emt 0:00:45]} Nh4 {[%emt 0:01:38]} 24. f3 {[%emt 0:01:54]} Qa4 {[%emt 0:03:06]} 25. a3 {[%emt 0:07:45]} O-O {[%emt 0:00:46]} 26. Rxd4 {[%emt 0:01:32]} Qb5 {[%emt 0:04:04]} 27. Qd3 {[%emt 0:09:07]} Rxd4 {[%emt 0:03:03]} 28. Qxb5 {[%emt 0:00:17]} Nxf3+ {[%emt 0:00:28]} 29. Rxf3 {[%emt 0:04:57]} Rd1+ {[%emt 0:00:02]} 30. Kf2 {[%emt 0:00:16]} axb5 {[%emt 0:00:42]} 31. Ke3 {[%emt 0:46:40]} Rd5 {[%emt 0:05:42]} 32. Ke4 {[%emt 0:00:30]} Rfd8 {[%emt 0:00:30]} 33. c3 {[%emt 0:00:30]} Rc8 {[%emt 0:00:30]} 1/2-1/2